bitfinex/quotes_SOLUSD_20250402
["timestamp","ask_amount","ask_price","bid_price","bid_amount"]
[1743635409294,0.14216157,118.25,118.21,0.063]
[1743635410212,0.14216157,118.23,118.21,0.063]
[1743635410391,18.64964886,118.22,118.21,0.063]
[1743635411198,85.64215386,118.24,118.21,0.063]
[1743635411699,18.64964886,118.24,118.21,0.063]
[1743635411895,66.992505,118.27,118.21,0.063]
[1743635412100,18.64964886,118.26,118.21,0.063]
[1743635412407,18.64964886,118.27,118.21,0.063]
[1743635412917,18.64964886,118.27,118.21,8.4543]
[1743635413094,66.992505,118.29,118.21,8.4543]
[1743635413299,77.75466657,118.3,118.21,8.4543]
[1743635413499,66.992505,118.3,118.22,29.6058]
[1743635414305,0.14216157,118.29,118.22,29.6058]
[1743635414501,18.64964886,118.28,118.22,29.6058]
[1743635417119,85.64215386,118.28,118.22,29.6058]
[1743635417330,85.64215386,118.26,118.22,8.4588]
[1743635417514,85.64215386,118.26,118.21,16.9136]
[1743635417719,66.992505,118.24,118.21,0.063]
[1743635418119,26.0,118.23,118.21,8.5224]
[1743635418499,26.0,118.23,118.21,0.063]
[1743635419328,92.992505,118.23,118.21,0.063]
[1743635419707,66.992505,118.22,118.21,0.063]
[1743635419910,26.0,118.23,118.21,0.063]
[1743635419911,92.992505,118.23,118.21,0.063]
[1743635420217,90.5549,118.28,118.21,0.063]
[1743635420423,85.64215386,118.27,118.21,0.063]
[1743635420805,18.64964886,118.28,118.21,0.063]
[1743635421007,85.64215386,118.28,118.21,0.063]
[1743635421629,18.64964886,118.28,118.21,0.063]
[1743635421824,85.64215386,118.28,118.21,0.063]
[1743635422119,66.992505,118.28,118.21,0.063]
[1743635422337,77.675505,118.29,118.21,0.063]
[1743635422512,77.675505,118.29,118.21,0.34732314]
[1743635422713,0.063,118.29,118.21,0.34732314]
[1743635423010,18.71264886,118.29,118.22,1.9725]
[1743635423413,0.063,118.29,118.22,1.9725]
[1743635423706,0.063,118.29,118.23,17.52598471]
[1743635424501,0.063,118.29,118.24,71.8875]
[1743635424708,0.063,118.29,118.24,153.7875]
[1743635425406,0.063,118.29,118.24,111.5007]
[1743635425621,67.055505,118.29,118.24,8.4573]
[1743635425813,85.64215386,118.28,118.24,8.4573]
[1743635426322,67.055505,118.29,118.24,8.4573]
[1743635426625,18.71264886,118.29,118.24,8.4573]
[1743635426823,85.70515386,118.29,118.24,29.6007]
[1743635427028,26.0,118.28,118.24,29.6007]
[1743635427527,26.0,118.28,118.24,8.4573]
[1743635428029,26.0,118.28,118.24,29.6007]
[1743635428641,26.0,118.28,118.24,8.4573]
[1743635428642,18.64964886,118.27,118.24,8.4573]
[1743635428935,18.64964886,118.27,118.23,14.9372]
[1743635429106,0.063,118.29,118.23,36.0824]
[1743635429507,85.64215386,118.28,118.23,14.9372]
[1743635429713,63.27962953,118.28,118.23,14.9372]
[1743635430118,0.063,118.29,118.23,14.9372]
[1743635430627,0.063,118.29,118.23,78.3728]
[1743635430839,0.063,118.29,118.24,0.28432314]
[1743635431011,0.063,118.29,118.24,82.32648471]
[1743635431915,0.063,118.29,118.24,82.18432314]
[1743635432834,0.063,118.29,118.26,0.28432314]
[1743635434635,0.063,118.29,118.25,29.5982]
[1743635435028,0.063,118.29,118.26,0.28432314]
[1743635435417,0.063,118.29,118.26,0.42648471]
[1743635437039,0.063,118.29,118.27,8.4552]
[1743635439843,8.4486,118.37,118.28,8.68978471]
[1743635440131,53.07858067,118.37,118.28,90.58978471]
[1743635441342,62.08642646,118.38,118.28,90.58978471]
[1743635441535,17.45644579,118.38,118.3,0.14216157]
[1743635441739,17.45644579,118.38,118.3,126.32648471]
[1743635441740,6.85644579,118.38,118.3,126.32648471]
[1743635441954,6.85644579,118.38,118.34,0.28432314]
[1743635442243,6.85644579,118.38,118.36,2.22842314]
[1743635442445,0.063,118.4,118.36,2.22842314]
[1743635443650,0.063,118.4,118.37,29.5682]
[1743635443837,0.063,118.4,118.38,0.28432314]
[1743635444247,0.063,118.4,118.37,29.5682]
[1743635444424,0.063,118.4,118.37,8.448]
[1743635445338,0.063,118.4,118.37,29.5682]
[1743635446026,0.063,118.4,118.37,8.448]
[1743635446219,0.063,118.4,118.36,90.3484]
[1743635447329,0.063,118.4,118.36,111.4704]
[1743635447721,0.063,118.4,118.37,0.42648471]
[1743635447926,0.063,118.4,118.37,11.00648471]
[1743635448141,0.063,118.41,118.37,136.90648471]
[1743635448358,0.063,118.49,118.39,0.14216157]
[1743635448655,8.5026,118.49,118.41,0.42648471]
[1743635448830,8.5026,118.49,118.41,0.28432314]
[1743635449023,0.063,118.49,118.41,0.42648471]
[1743635449340,0.063,118.49,118.43,0.42648471]
[1743635449536,0.063,118.49,118.45,0.28432314]
[1743635449860,0.063,118.49,118.45,84.37198471]
[1743635450016,0.063,118.49,118.45,84.22982314]
[1743635450633,0.063,118.49,118.45,83.9455]
[1743635451150,0.063,118.49,118.42,54.86432314]
[1743635451151,0.063,118.49,118.43,8.4435]
[1743635451322,44.69298067,118.49,118.43,8.4435]
[1743635451521,53.13278067,118.49,118.43,8.4435]
[1743635452127,18.64964886,118.48,118.43,8.4435]
[1743635452547,26.0,118.41,118.33,88.1373]
[1743635452841,18.64964886,118.38,118.33,6.2373]
[1743635453052,63.27962953,118.38,118.32,1.9416]
[1743635453258,44.62998067,118.4,118.32,10.3932]
[1743635453429,36.58,118.44,118.33,0.14216157]
[1743635453630,18.64964886,118.41,118.34,8.4502]
[1743635453846,18.64964886,118.41,118.37,0.03]
[1743635454350,63.27962953,118.41,118.37,0.03]
[1743635454561,18.64964886,118.38,118.37,0.03]
[1743635455547,27.09694886,118.38,118.37,0.03]
[1743635456171,18.64964886,118.38,118.37,0.03]
[1743635456388,27.09694886,118.38,118.37,0.03]
[1743635456975,18.64964886,118.38,118.37,0.03]
[1743635457149,75.27074535,118.4,118.37,0.03]
[1743635457345,8.4453,118.41,118.37,0.03]
[1743635457675,18.64964886,118.41,118.37,0.03]
[1743635457873,27.09394886,118.43,118.37,0.03]
[1743635458068,93.91849421,118.43,118.37,0.03]
[1743635458273,26.0,118.39,118.37,0.03]
[1743635458454,18.64964886,118.38,118.37,0.03]
[1743635458950,26.0,118.4,118.37,0.03]
[1743635459151,18.64964886,118.42,118.37,0.03]
[1743635459578,93.91909421,118.42,118.37,0.03]
[1743635459896,8.4449,118.42,118.37,0.03]
[1743635460047,27.09454886,118.42,118.37,0.03]
[1743635460252,85.47419421,118.41,118.37,0.03]
[1743635460553,27.09454886,118.42,118.37,0.03]
[1743635460554,18.64964886,118.39,118.37,0.03]
[1743635460764,85.47419421,118.38,118.37,0.03]
[1743635461958,26.0,118.34,118.29,88.4627]
[1743635462279,18.64964886,118.32,118.27,1.9855]
[1743635462469,85.47419421,118.32,118.26,6.4615]
[1743635462646,66.82454535,118.31,118.25,8.4862]
[1743635463482,10.56,118.35,118.25,29.6278]
[1743635463685,26.0,118.31,118.25,111.5278]
[1743635464387,44.64964886,118.3,118.25,8.4862]
[1743635464589,26.0,118.3,118.25,8.4862]
[1743635464953,18.64964886,118.31,118.25,8.4862]
[1743635465359,85.47419421,118.31,118.25,8.4862]
[1743635465582,66.82454535,118.3,118.25,8.4862]
[1743635466080,18.64964886,118.31,118.25,0.03]
[1743635466784,85.83574535,118.33,118.25,0.45648471]
[1743635466785,10.56,118.33,118.25,0.45648471]
[1743635466972,66.82454535,118.35,118.25,92.91648471]
[1743635467165,18.64964886,118.32,118.25,92.49]
[1743635467365,85.47419421,118.32,118.25,81.93]
[1743635467579,18.64964886,118.32,118.25,81.93]
[1743635467887,44.73164544,118.37,118.25,0.17216157]
[1743635467888,18.64964886,118.33,118.25,0.17216157]
[1743635468067,18.64964886,118.33,118.26,8.4559]
[1743635468373,26.0,118.32,118.27,0.28432314]
[1743635468762,24.5,118.32,118.27,0.28432314]
[1743635469273,24.5,118.32,118.28,8.4545]
[1743635469474,27.09874886,118.36,118.28,90.3545]
[1743635469688,85.83214535,118.38,118.29,0.42648471]
[1743635469862,85.47419421,118.37,118.28,111.4907]
[1743635470071,18.64964886,118.35,118.28,90.3545]
[1743635470271,18.64964886,118.34,118.28,90.3545]
[1743635471187,66.82454535,118.36,118.28,90.3545]
[1743635471365,26.0,118.33,118.28,90.3545]
[1743635472198,26.0,118.33,118.28,111.4907]
[1743635472361,18.64964886,118.35,118.28,111.4907]
[1743635472693,18.64964886,118.35,118.28,90.3545]
[1743635472694,26.0,118.34,118.28,90.3545]
[1743635473465,26.0,118.34,118.29,0.28432314]
[1743635473894,18.64964886,118.36,118.29,0.28432314]
[1743635474072,18.64964886,118.39,118.31,0.42648471]
[1743635474267,18.64964886,118.39,118.31,82.18432314]
[1743635474473,85.47419421,118.39,118.31,81.9]
[1743635474792,26.0,118.36,118.31,81.9]
[1743635475171,18.64964886,118.39,118.31,81.9]
[1743635475490,8.4468,118.39,118.32,8.4516]
[1743635476277,18.64964886,118.36,118.31,81.9]
[1743635476987,44.53973433,118.36,118.31,81.9]
[1743635477188,18.64964886,118.35,118.3,8.3313]
[1743635477393,18.64964886,118.33,118.28,81.9]
[1743635477587,18.64964886,118.33,118.28,90.3541]
[1743635478287,18.64964886,118.33,118.31,0.03]
[1743635479194,27.09934886,118.35,118.31,0.03]
[1743635479377,18.64964886,118.34,118.31,0.03]
[1743635479575,27.10014886,118.34,118.31,0.03]
[1743635480385,18.64964886,118.34,118.31,0.03]
[1743635480588,27.09994886,118.34,118.31,0.03]
[1743635481478,27.09944886,118.35,118.31,0.03]
[1743635485798,26.0,118.33,118.31,0.03]
[1743635486095,18.64964886,118.37,118.31,0.03]
[1743635486398,8.4488,118.36,118.31,0.03]
[1743635486701,18.64964886,118.37,118.31,0.03]
[1743635486885,0.063,118.42,118.34,1.9351]
[1743635487089,0.063,118.42,118.34,83.8351]
[1743635487298,44.53973433,118.37,118.31,0.03]
[1743635487599,26.0,118.35,118.31,0.03]
[1743635487977,10.56,118.38,118.31,0.17216157]
[1743635488174,29.6188,118.42,118.33,8.4509]
[1743635488175,37.65514886,118.41,118.33,8.4509]
[1743635488398,19.0055,118.41,118.33,8.4509]
[1743635489019,0.063,118.42,118.34,0.42648471]
[1743635489304,0.063,118.42,118.36,0.28432314]
[1743635489494,0.063,118.42,118.36,0.42648471]
[1743635490205,0.063,118.42,118.37,8.448]
[1743635490781,0.063,118.42,118.37,29.5682]
[1743635491079,0.063,118.42,118.37,8.448]
[1743635491285,0.063,118.42,118.36,8.4485]
[1743635491900,26.063,118.42,118.36,29.5705]
[1743635492100,0.063,118.42,118.37,0.42648471]
[1743635492286,0.063,118.42,118.38,8.4473]
[1743635493983,0.063,118.42,118.38,111.4657]
[1743635495800,0.063,118.42,118.39,0.42648471]
[1743635496001,0.063,118.42,118.39,136.86648471]
[1743635496202,0.063,118.48,118.41,29.5582]
[1743635496402,0.063,118.48,118.42,0.42648471]
[1743635497817,0.063,118.48,118.42,126.32648471]
[1743635497998,0.063,118.48,118.43,0.42648471]
[1743635498194,0.063,118.48,118.45,29.5482]
[1743635498398,0.063,118.48,118.46,0.42648471]
[1743635498600,0.063,118.48,118.45,29.5482]
[1743635499809,0.063,118.48,118.45,8.4423]
[1743635501209,0.063,118.48,118.45,29.5482]
[1743635501600,0.063,118.48,118.45,8.4423]
[1743635503410,26.063,118.48,118.45,8.4423]
[1743635503909,0.063,118.48,118.47,26.0]
[1743635504112,0.063,118.49,118.46,8.1577]
[1743635504410,0.063,118.49,118.45,90.3423]
[1743635504615,0.063,118.49,118.45,8.4423]
[1743635505519,26.063,118.49,118.45,8.4423]
[1743635505904,0.063,118.49,118.45,8.4423]
[1743635506102,0.063,118.49,118.45,29.5482]
[1743635506318,0.063,118.49,118.45,111.4482]
[1743635507400,0.063,118.54,118.48,26.0]
[1743635507594,0.063,118.54,118.5,0.28432314]
[1743635507808,0.063,118.54,118.49,10.52]
[1743635508193,0.063,118.54,118.5,0.42648471]
[1743635508397,26.063,118.54,118.49,10.52]
[1743635508617,26.063,118.54,118.5,8.4388]
[1743635509316,18.71264886,118.54,118.5,8.4388]
[1743635509503,18.71264886,118.54,118.5,29.5358]
[1743635509926,0.063,118.54,118.5,111.4358]
[1743635510435,18.71264886,118.54,118.5,90.3388]
[1743635510795,0.063,118.54,118.5,111.4358]
[1743635511022,0.063,118.54,118.51,0.42648471]
[1743635511224,0.063,118.54,118.51,82.32648471]
[1743635512817,0.063,118.54,118.52,8.4373]
[1743635514626,0.063,118.54,118.51,81.9]
[1743635514823,0.063,118.54,118.48,21.1]
[1743635515030,0.063,118.54,118.48,8.4402]
[1743635515527,18.64964886,118.53,118.48,8.4402]
[1743635515728,63.18938319,118.52,118.46,8.4416]
[1743635516096,63.18938319,118.53,118.46,8.4416]
[1743635516926,27.08694886,118.53,118.46,8.4416]
[1743635517129,18.64964886,118.53,118.47,0.42648471]
[1743635517921,0.063,118.54,118.47,0.42648471]
[1743635518221,18.64964886,118.51,118.46,111.4457]
[1743635518424,18.64964886,118.52,118.46,111.4457]
[1743635518723,26.0,118.51,118.47,0.42648471]
[1743635519223,44.64964886,118.5,118.45,0.03]
[1743635519421,89.18938319,118.5,118.45,0.03]
[1743635519808,18.64964886,118.49,118.45,0.03]
[1743635521020,27.08974886,118.49,118.45,0.03]
[1743635521330,18.64964886,118.49,118.45,0.03]
[1743635522535,0.063,118.54,118.45,81.93]
[1743635522909,44.53973433,118.52,118.45,81.93]
[1743635523137,18.64964886,118.49,118.45,81.93]
[1743635523608,18.64964886,118.47,118.45,90.3721]
[1743635523803,18.64964886,118.47,118.45,81.93]
[1743635524316,18.64964886,118.51,118.46,0.42648471]
[1743635524627,16.36533389,118.51,118.46,0.42648471]
[1743635525126,16.36533389,118.51,118.47,8.4409]
[1743635525331,53.03903433,118.54,118.47,8.4409]
[1743635525636,53.03903433,118.54,118.45,103.0359]
[1743635525637,44.53973433,118.51,118.45,81.93]
[1743635525837,44.53973433,118.5,118.45,90.3721]
[1743635526215,70.53973433,118.51,118.45,90.3721]
[1743635526612,18.64964886,118.5,118.45,90.3721]
[1743635526810,18.64964886,118.5,118.45,81.93]
[1743635526811,63.18938319,118.5,118.45,81.93]
[1743635527024,63.18938319,118.5,118.45,90.3723]
[1743635527229,71.62848319,118.5,118.45,90.3723]
[1743635527607,18.64964886,118.48,118.45,0.03]
[1743635528226,89.18938319,118.46,118.45,0.03]
[1743635529232,97.63098319,118.46,118.45,0.03]
[1743635529420,53.09124886,118.46,118.45,0.03]
[1743635529620,44.64964886,118.46,118.45,0.03]
[1743635530530,53.09124886,118.46,118.45,0.03]
[1743635530827,20.28432314,118.51,118.45,0.03]
[1743635530828,15.077,118.53,118.45,81.93]
[1743635531031,18.64964886,118.52,118.46,0.42648471]
[1743635531232,18.64964886,118.52,118.47,8.4409]
[1743635531414,18.64964886,118.53,118.47,8.4409]
[1743635531609,0.063,118.54,118.48,0.42648471]
[1743635531933,0.063,118.54,118.48,82.32648471]
[1743635533039,0.063,118.54,118.48,81.9]
[1743635533219,0.063,118.54,118.49,29.5383]
[1743635533539,0.063,118.54,118.5,0.42648471]
[1743635535229,0.063,118.54,118.52,0.42648471]
[1743635536119,0.063,118.54,118.5,8.4385]
[1743635536326,0.063,118.54,118.51,12.59436157]
[1743635536527,18.71264886,118.61,118.53,0.42648471]
[1743635536833,63.18938319,118.58,118.53,81.9]
[1743635537034,18.64964886,118.56,118.53,81.9]
[1743635537227,18.64964886,118.56,118.52,8.4373]
[1743635537432,18.64964886,118.55,118.51,10.39]
[1743635537628,18.64964886,118.55,118.49,98.7879]
[1743635538233,18.64964886,118.55,118.49,88.2879]
[1743635538447,18.64964886,118.52,118.48,8.4398]
[1743635538614,44.64964886,118.52,118.48,8.4398]
[1743635538824,18.71264886,118.54,118.49,0.14216157]
[1743635539018,0.063,118.54,118.49,0.14216157]
[1743635539223,0.063,118.54,118.49,0.42648471]
[1743635539456,0.063,118.54,118.5,8.4388]
[1743635540132,26.063,118.54,118.5,8.4388]
[1743635540345,18.64964886,118.53,118.5,8.4388]
[1743635540945,18.64964886,118.51,118.48,81.9]
[1743635541150,18.64964886,118.52,118.48,90.3401]
[1743635541324,18.64964886,118.51,118.48,90.3401]
[1743635543552,18.64964886,118.51,118.46,8.4416]
[1743635544130,26.0,118.52,118.47,0.42648471]
[1743635544742,18.64964886,118.51,118.46,111.4457]
[1743635545124,26.0,118.52,118.47,0.42648471]
[1743635545345,26.0,118.52,118.48,8.4402]
[1743635545658,18.64964886,118.52,118.48,8.4402]
[1743635545825,18.64964886,118.53,118.47,8.4407]
[1743635546321,18.64964886,118.51,118.47,8.4407]
[1743635546528,18.64964886,118.51,118.47,29.543]
[1743635548052,18.64964886,118.51,118.46,90.3413]
[1743635548631,18.64964886,118.51,118.46,8.4413]
[1743635549134,18.64964886,118.51,118.46,29.5454]
[1743635549554,18.64964886,118.51,118.46,21.1041]
[1743635551635,0.063,118.54,118.5,0.14216157]
[1743635551833,0.063,118.54,118.53,26.42648471]
[1743635552136,0.03,118.6,118.54,0.28432314]
[1743635552335,0.03,118.6,118.55,0.14216157]
[1743635552963,0.03,118.6,118.54,81.9]
[1743635552964,18.64964886,118.59,118.54,81.9]
[1743635553346,26.0,118.55,118.51,88.425]
[1743635553538,18.64964886,118.54,118.48,83.9377]
[1743635553738,63.18938319,118.54,118.48,2.0377]
[1743635553941,18.64964886,118.5,118.45,0.03]
[1743635554149,18.64964886,118.51,118.45,8.472]
[1743635554347,26.0,118.48,118.45,8.472]
[1743635554864,26.0,118.48,118.45,0.03]
[1743635555466,26.0,118.48,118.45,8.4721]
[1743635555852,8.4389,118.5,118.45,8.4721]
[1743635556047,26.0,118.48,118.45,8.4721]
[1743635557855,18.64964886,118.47,118.45,0.03]
[1743635558974,63.18938319,118.47,118.45,0.03]
[1743635559173,18.64964886,118.47,118.45,0.03]
[1743635559555,71.63028319,118.47,118.45,0.03]
[1743635559854,63.18938319,118.46,118.45,0.03]
[1743635561072,71.63098319,118.46,118.45,0.03]
[1743635561751,82.25314476,118.46,118.45,0.03]
[1743635561949,29.27181043,118.46,118.45,0.03]
[1743635562370,82.25314476,118.46,118.45,0.03]
[1743635565971,82.5374679,118.46,118.45,0.03]
[1743635566157,26.0,118.42,118.36,1.9914]
[1743635566355,18.64964886,118.42,118.36,1.9914]
[1743635567273,18.64964886,118.42,118.37,8.4477]
[1743635567452,27.09414886,118.42,118.37,8.4477]
[1743635567655,27.09414886,118.42,118.36,10.4398]
[1743635568274,18.64964886,118.42,118.36,10.4398]
[1743635568465,18.64964886,118.42,118.37,0.42648471]
[1743635568874,18.64964886,118.45,118.37,0.42648471]
[1743635569488,18.64964886,118.45,118.38,29.5657]
[1743635571079,18.64964886,118.49,118.39,0.42648471]
[1743635571284,18.64964886,118.49,118.41,0.42648471]
[1743635571464,18.64964886,118.49,118.42,29.5557]
[1743635571780,44.53973433,118.51,118.43,0.42648471]
[1743635571989,44.6818959,118.51,118.43,83.8118]
[1743635572164,18.64964886,118.5,118.43,83.8118]
[1743635572683,18.64964886,118.51,118.43,83.8118]
[1743635573191,0.14216157,118.54,118.45,6.4632]
[1743635573480,26.0,118.52,118.45,88.3632]
[1743635573685,18.79181043,118.54,118.46,29.5457]
[1743635573987,18.64964886,118.5,118.46,29.5457]
[1743635574363,18.75981536,118.55,118.47,0.42648471]
[1743635574364,44.53973433,118.55,118.47,0.42648471]
[1743635574566,52.97443433,118.56,118.47,92.78648471]
[1743635574766,18.64964886,118.51,118.47,92.36]
[1743635575084,18.64964886,118.48,118.46,8.4416]
[1743635575869,18.64964886,118.48,118.45,6.4632]
[1743635576187,18.64964886,118.48,118.44,8.4427]
[1743635577266,26.0,118.49,118.44,8.4427]
[1743635577465,26.0,118.5,118.45,0.42648471]
[1743635577785,26.0,118.5,118.46,8.4416]
[1743635578288,0.063,118.51,118.46,111.4457]
[1743635578473,0.063,118.51,118.47,0.42648471]
[1743635579158,0.063,118.51,118.48,6.1457]
[1743635579357,0.063,118.51,118.48,88.0457]
[1743635579561,8.63636157,118.61,118.52,0.42648471]
[1743635579784,26.0,118.58,118.53,8.4366]
[1743635580007,26.0,118.58,118.53,29.5283]
[1743635580158,18.64964886,118.57,118.53,29.5283]
[1743635580882,18.71264886,118.61,118.53,29.5283]
[1743635581081,18.71264886,118.61,118.53,111.4283]
[1743635581281,18.71264886,118.61,118.54,6.0861]
[1743635581477,0.063,118.61,118.54,6.0861]
[1743635581995,0.063,118.61,118.55,8.4352]
[1743635582503,75.22634596,118.59,118.53,81.9]
[1743635582678,75.22634596,118.59,118.5,16.83042314]
[1743635582679,18.64964886,118.56,118.5,6.0861]
[1743635582986,44.64964886,118.56,118.5,14.5247]
[1743635583870,53.08414886,118.56,118.5,14.5247]
[1743635584070,109.66084596,118.56,118.5,6.0861]
[1743635584373,44.64964886,118.56,118.5,14.5247]
[1743635585267,10.46,118.59,118.51,0.42648471]
[1743635585468,18.64964886,118.58,118.51,82.32648471]
[1743635585985,27.08344886,118.58,118.51,90.76408471]
[1743635586570,8.4327,118.59,118.51,111.85928471]
[1743635586775,0.03,118.6,118.51,111.85928471]
[1743635587373,0.063,118.57,118.51,111.85928471]
[1743635588985,0.063,118.57,118.56,2.46268471]
[1743635589284,0.03,118.6,118.56,90.93788471]
[1743635589491,0.03,118.6,118.57,0.42648471]
[1743635590088,0.03,118.6,118.58,8.4331]
[1743635590885,0.03,118.6,118.59,0.42648471]
[1743635591087,0.03,118.64,118.6,81.9]
[1743635591389,0.03,118.66,118.63,26.42648471]
[1743635591593,0.03,118.66,118.64,0.42648471]
[1743635591795,0.03,118.66,118.65,26.0]
[1743635591969,0.03,118.66,118.65,34.4281]
[1743635592602,0.03,118.66,118.65,34.85458471]
[1743635594191,0.03,118.66,118.65,8.85458471]
[1743635594770,0.03,118.66,118.65,8.4281]
[1743635594984,0.03,118.66,118.64,8.4285]
[1743635595579,0.03,118.66,118.65,0.42648471]
[1743635596176,0.03,118.66,118.65,8.85458471]
[1743635596599,0.03,118.66,118.65,116.75458471]
[1743635598890,0.03,118.66,118.65,116.61242314]
[1743635599087,0.03,118.66,118.65,90.3281]
[1743635599495,0.03,118.66,118.65,90.61242314]
[1743635599887,0.03,118.66,118.65,90.75458471]
[1743635600305,0.03,118.66,118.65,90.47026157]
[1743635600486,0.03,118.66,118.65,90.75458471]
[1743635601497,0.063,118.69,118.66,0.42648471]
[1743635601800,0.063,118.69,118.67,10.42]
[1743635603114,0.063,118.69,118.68,17.13858471]
[1743635606007,0.03,118.7,118.68,17.13858471]
[1743635606314,0.0001,118.72,118.71,19.07613357]
[1743635606518,0.0001,118.72,118.71,126.32648471]
[1743635607290,0.0001,118.72,118.71,134.75028471]
[1743635607527,0.0001,118.72,118.71,90.75028471]
[1743635610316,0.0001,118.72,118.71,90.46596157]
[1743635610987,0.0001,118.72,118.71,90.75028471]
[1743635611791,0.0001,118.72,118.71,81.9]
[1743635612204,0.0001,118.72,118.68,8.2861]
[1743635612205,18.64974886,118.72,118.68,81.9]
[1743635612410,0.0001,118.72,118.68,90.3256]
[1743635612597,0.0001,118.72,118.68,111.3906]
[1743635613219,0.0001,118.72,118.69,0.42648471]
[1743635613519,0.0001,118.72,118.71,34.85028471]
[1743635613712,0.0001,118.72,118.71,116.75028471]
[1743635614414,0.0001,118.72,118.71,81.9]
[1743635614919,0.0001,118.72,118.7,8.4242]
[1743635615415,0.0001,118.72,118.69,81.9]
[1743635615416,0.0001,118.72,118.69,90.3249]
[1743635615899,0.0001,118.72,118.69,100.7249]
[1743635616098,0.0001,118.72,118.69,121.7881]
[1743635617116,0.0001,118.72,118.7,0.42648471]
[1743635617699,0.0001,118.72,118.71,8.4238]
[1743635618105,0.0001,118.72,118.71,90.75028471]
[1743635618502,0.0001,118.72,118.71,97.09098471]
[1743635620535,0.03,118.76,118.72,82.32648471]
[1743635622022,0.03,118.76,118.73,29.4785]
[1743635622224,0.03,118.76,118.75,0.42648471]
[1743635622459,0.03,118.78,118.75,82.32648471]
[1743635622616,0.03,118.78,118.75,126.32648471]
[1743635623108,0.03,118.78,118.77,19.07613357]
[1743635623308,0.03,118.78,118.73,155.5241]
[1743635623525,0.03,118.78,118.74,0.14216157]
[1743635623740,0.03,118.78,118.74,0.42648471]
[1743635624040,0.03,118.78,118.76,0.42648471]
[1743635624217,0.03,118.78,118.75,29.4736]
[1743635624415,18.64964886,118.77,118.73,81.9]
[1743635624637,0.03,118.76,118.73,81.9]
[1743635624845,0.03,118.76,118.73,90.3223]
[1743635625218,0.03,118.76,118.74,0.14216157]
[1743635625413,0.03,118.76,118.75,10.82648471]
[1743635625949,0.03,118.76,118.75,10.4]
[1743635626717,0.03,118.76,118.74,90.3213]
[1743635628716,0.03,118.76,118.74,81.9]
[1743635628947,0.03,118.76,118.74,90.3216]
[1743635629447,0.03,118.76,118.75,0.42648471]
[1743635629634,0.03,118.76,118.75,82.32648471]
[1743635630137,0.03,118.76,118.75,90.74748471]
[1743635635941,0.03,118.76,118.75,90.321]
[1743635636151,0.03,118.76,118.75,90.46316157]
[1743635636445,0.03,118.76,118.75,90.74748471]
[1743635638047,0.03,118.76,118.75,90.321]
[1743635639850,0.03,118.76,118.75,90.74748471]
[1743635640863,0.03,118.76,118.75,90.321]
[1743635641952,44.67964886,118.76,118.75,81.9]
[1743635642251,18.64964886,118.75,118.71,81.963]
[1743635642563,6.5147,118.76,118.71,8.4867]
[1743635642751,18.64964886,118.75,118.71,8.4867]
[1743635643250,18.64964886,118.75,118.71,29.5464]
[1743635643456,18.64964886,118.75,118.71,111.4464]
[1743635644161,26.03,118.76,118.72,0.42648471]
[1743635644535,26.03,118.76,118.71,90.3867]
[1743635644536,18.64964886,118.75,118.71,90.3867]
[1743635644739,18.64964886,118.75,118.71,81.963]
[1743635645034,27.07124886,118.75,118.71,81.963]
[1743635645238,18.64964886,118.75,118.71,90.3867]
[1743635646148,26.03,118.76,118.72,0.42648471]